fUST/lending_fUST_20240729
["ID","MTS","AMOUNT","RATE_DAILY","PERIOD"]
[333515127,1722223865277,-1432.9,0.00018968,2]
[333515128,1722223865287,-512.74,0.00018968,2]
[333515129,1722223865296,-500.0,0.00018968,2]
[333515130,1722223865305,-534.93,0.00018969,2]
[333515131,1722223865314,-186.62539483,0.00018969,2]
[333515132,1722223865324,-250.0,0.00019041,2]
[333515133,1722223865333,-293.82187,0.00019178,2]
[333515134,1722223865342,-500.0,0.00019242,2]
[333515135,1722223865352,-677.39,0.00019242,2]
[333515136,1722223865361,-500.0,0.00019242,2]
[333515137,1722223865371,-596.8,0.00019242,2]
[333515138,1722223865380,-500.0,0.00019242,2]
[333515139,1722223865390,-713.0,0.00019242,2]
[333515140,1722223865399,-521.03,0.00019242,2]
[333515141,1722223865409,-552.25808465,0.00019242,2]
[333515142,1722223865418,-8758.31,0.00019242,2]
[333515143,1722223865428,-2022.79,0.00019242,2]
[333515144,1722223865438,-549.26260401,0.00019242,2]
[333515145,1722223865448,-2552.05,0.00019242,2]
[333515146,1722223865459,-996.33,0.00019242,2]
[333515147,1722223865468,-539.42,0.00019242,2]
[333515148,1722223865478,-573.35,0.00019242,2]
[333515149,1722223865487,-932.0,0.00019242,2]
[333515150,1722223865497,-1432.9,0.00019242,2]
[333515151,1722223865506,-512.74,0.00019242,2]
[333515152,1722223865516,-500.0,0.00019242,2]
[333515153,1722223865526,-534.93,0.00019243,2]
[333515154,1722223865536,-441.21146606,0.00019285,2]
[333515155,1722223865545,-274.669245,0.00019474,2]
[333515156,1722223865554,-178.105111,0.00019474,2]
[333515157,1722223865564,-161.83459,0.00019474,2]
[333515158,1722223865574,-251.513966,0.00019474,2]
[333515159,1722223865583,-500.0,0.00019516,2]
[333515160,1722223865592,-677.39,0.00019516,2]
[333515161,1722223865602,-500.0,0.00019516,2]
[333515162,1722223865611,-596.8,0.00019516,2]
[333515163,1722223865621,-500.0,0.00019516,2]
[333515164,1722223865631,-713.0,0.00019516,2]
[333515165,1722223865640,-521.03,0.00019516,2]
[333515166,1722223865650,-8758.31,0.00019516,2]
[333515167,1722223865659,-2022.79,0.00019516,2]
[333515168,1722223865669,-2552.05,0.00019516,2]
[333515169,1722223865678,-996.33,0.00019516,2]
[333515170,1722223865689,-539.42,0.00019516,2]
[333515171,1722223865699,-573.35,0.00019516,2]
[333515172,1722223865708,-932.0,0.00019516,2]
[333515173,1722223865717,-1432.9,0.00019516,2]
[333515174,1722223865726,-512.74,0.00019516,2]
[333515175,1722223865736,-500.0,0.00019516,2]
[333515176,1722223865746,-534.93,0.00019517,2]
[333515177,1722223865756,-150.112233,0.000197,2]
[333515178,1722223865765,-500.0,0.0001979,2]
[333515179,1722223865774,-677.39,0.0001979,2]
[333515180,1722223865783,-500.0,0.0001979,2]
[333515181,1722223865793,-596.8,0.0001979,2]
[333515182,1722223865802,-500.0,0.0001979,2]
[333515183,1722223865811,-713.0,0.0001979,2]
[333515184,1722223865820,-521.03,0.0001979,2]
[333515185,1722223865830,-8758.31,0.0001979,2]
[333515186,1722223865839,-2022.79,0.0001979,2]
[333515187,1722223865848,-2552.05,0.0001979,2]
[333515188,1722223865858,-996.33,0.0001979,2]
[333515189,1722223865868,-539.42,0.0001979,2]
[333515190,1722223865878,-573.35,0.0001979,2]
[333515191,1722223865888,-932.0,0.0001979,2]
[333515192,1722223865897,-1432.9,0.0001979,2]
[333515193,1722223865907,-512.74,0.0001979,2]
[333515194,1722223865916,-500.0,0.0001979,2]
[333515195,1722223865926,-534.93,0.00019791,2]
[333515196,1722223865935,-161.83459,0.00019961,2]
[333515197,1722223865945,-476.45339051,0.0002,2]
[333515198,1722223865954,-1948.74104367,0.0002,2]
[333515199,1722223865964,-156.3,0.0002,2]
[333515200,1722223865973,-564.38943561,0.0002,2]
[333515201,1722223865982,-307.10376975,0.0002,2]
[333515202,1722223865992,-154.63660398,0.0002,2]
[333515203,1722223866003,-222.07416662,0.0002,2]
[333515204,1722223866014,-435.0,0.0002,2]
[333515205,1722223866023,-154.57491897,0.0002,2]
[333515206,1722223866033,-167.71839031,0.0002,2]
[333515207,1722223866044,-538.21415633,0.0002,2]
[333515208,1722223866053,-1991.8655524,0.0002,2]
[333515209,1722223866063,-302.33493269,0.0002,2]
[333515210,1722223866072,-378.54875589,0.00020019,2]
[333515211,1722223866082,-1410.0,0.0002005,2]
[333515212,1722223866092,-150.0,0.0002005,2]
[333515213,1722223866101,-500.0,0.00020064,2]
[333515214,1722223866111,-677.39,0.00020064,2]
[333515215,1722223866121,-500.0,0.00020064,2]
[333515216,1722223866132,-596.8,0.00020064,2]
[333515217,1722223866142,-500.0,0.00020064,2]
[333515218,1722223866151,-713.0,0.00020064,2]
[333515219,1722223866164,-521.03,0.00020064,2]
[333515220,1722223866174,-7502.64501161,0.00020064,2]
[333515224,1722224826153,-163.450962,0.00012986,2]
[333515225,1722224826175,-109.92240031,0.00014247,2]
[333515226,1722224831104,-239.79972569,0.00014247,2]
[333515227,1722224831126,-168.9157725,0.00014259,2]
[333515228,1722224831147,-228.022683,0.00014558,2]
[333515229,1722224831168,-339.0279046,0.00014573,2]
[333515230,1722224831190,-450.4151705,0.00014642,2]
[333515231,1722224831212,-182.528005,0.0001489,2]
[333515232,1722224831233,-182.528005,0.00015278,2]
[333515233,1722224831254,-182.528005,0.00015666,2]
[333515234,1722224831276,-500.0,0.00015679,2]
[333515235,1722224831296,-500.0,0.00015679,2]
[333515236,1722224831317,-569.57896461,0.00015679,2]
[333515237,1722224831337,-500.0,0.0001568,2]
[333515238,1722224831358,-500.0,0.0001568,2]
[333515239,1722224831378,-507.79757809,0.0001568,2]
[333515240,1722224831398,-500.0,0.0001568,2]
[333515241,1722224831417,-502.33048211,0.0001568,2]
[333515242,1722224831437,-500.0,0.0001568,2]
[333515243,1722224831458,-164.26021029,0.0001568,2]
[333515244,1722224831483,-500.0,0.0001568,2]
[333515245,1722224831503,-500.0,0.0001568,2]
[333515246,1722224831527,-526.95435952,0.0001568,2]
[333515247,1722224831549,-500.0,0.0001568,2]
[333515248,1722224831571,-500.0,0.0001568,2]
[333515249,1722224831592,-500.0,0.0001568,2]
[333515250,1722224831612,-506.51951383,0.0001568,2]
[333515251,1722224831633,-500.0,0.0001568,2]
[333515252,1722224831653,-121.17570138,0.0001568,2]
[333515253,1722224839126,-378.82429862,0.0001568,2]
[333515254,1722224839150,-500.0,0.0001568,2]
[333515255,1722224839174,-500.0,0.0001568,2]
[333515256,1722224839195,-500.0,0.0001568,2]
[333515257,1722224839216,-150.112233,0.000157,2]
[333515258,1722224839238,-150.112233,0.000158,2]
[333515259,1722224839261,-150.112233,0.000159,2]
[333515260,1722224839284,-500.0,0.00015952,2]
[333515261,1722224839306,-500.0,0.00015952,2]
[333515262,1722224839327,-230.35181858,0.00015952,2]
[333515263,1722224839348,-483.86659629,0.00015952,2]
[333515264,1722224839369,-607.17113703,0.00015952,2]
[333515265,1722224839389,-500.0,0.00015952,2]
[333515266,1722224839411,-406.33203309,0.00015953,2]
[333515267,1722224839432,-500.0,0.00015953,2]
[333515268,1722224839455,-500.0,0.00015953,2]
[333515269,1722224839481,-500.0,0.00015953,2]
[333515270,1722224839502,-500.0,0.00015953,2]
[333515271,1722224839527,-500.0,0.00015953,2]
[333515272,1722224839553,-500.0,0.00015953,2]
[333515273,1722224839575,-500.0,0.00015953,2]
[333515274,1722224839598,-500.0,0.00015953,2]
[333515275,1722224839618,-502.42193957,0.00015953,2]
[333515276,1722224839639,-500.0,0.00015953,2]
[333515277,1722224839759,-644.33064622,0.00015953,2]
[333515278,1722224839783,-500.86036094,0.00015953,2]
[333515279,1722224839806,-500.0,0.00015953,2]
[333515280,1722224839829,-506.03207715,0.00015953,2]
[333515281,1722224839851,-500.0,0.00015953,2]
[333515282,1722224839872,-500.0,0.00015953,2]
[333515283,1722224839895,-503.04172359,0.00015953,2]
[333515284,1722224839921,-500.0,0.00015953,2]
[333515285,1722224839943,-500.0,0.00015953,2]
[333515286,1722224839964,-500.0,0.00015953,2]
[333515287,1722224839984,-500.0,0.00015953,2]
[333515288,1722224840006,-500.0,0.00015953,2]
[333515289,1722224840027,-500.0,0.00015953,2]
[333515290,1722224840048,-500.0,0.00015953,2]
[333515291,1722224840070,-695.1,0.00015953,2]
[333515292,1722224840093,-565.68151395,0.00015953,2]
[333515293,1722224843942,-417.02642557,0.00015953,2]
[333515294,1722224850091,-1624.12206048,0.00015953,2]
[333515295,1722224850113,-8.14852965,0.00015953,2]
[333515296,1722224951295,-155.5456,0.00012986,2]
[333515297,1722224967142,-7.905362,0.00012986,2]
[333515298,1722224981573,1464.92,0.0002335,120]
[333515299,1722224983786,166.86316,0.00012986,2]
[333515359,1722225032420,-5957.93352349,0.00012986,2]
[333515361,1722225032431,-18810.80109003,0.00012986,2]
[333515363,1722225032441,-1104.3289927,0.00014986,2]
[333515365,1722225032453,-500.0,0.0001568,2]
[333515367,1722225032463,-503.15229808,0.0001568,2]
[333515369,1722225032472,-20710.91336339,0.00015951,2]
[333515973,1722225038457,-174.39766273,0.00013698,2]
[333515975,1722225038466,-14291.00465681,0.00015951,2]
[333515977,1722225038476,-500.0,0.00015952,2]
[333515979,1722225038485,-161.24627301,0.00015952,2]
[333515981,1722225038495,-188.70661741,0.00015952,2]
[333515983,1722225038505,-500.0,0.00015952,2]
[333515985,1722225038514,-625.01979593,0.00015952,2]
[333515987,1722225038524,-495.64981044,0.00015953,2]
[333515989,1722225038537,-500.0,0.00015953,2]
[333515992,1722225038547,-316.93613537,0.00015953,2]
[333516211,1722225041182,-183.06386463,0.00015953,2]
[333516213,1722225041192,-500.0,0.00015953,2]
[333516215,1722225041202,-118.71637537,0.00015953,2]
[333516217,1722225041213,-381.28362463,0.00015953,2]
[333516219,1722225041222,-120.69846308,0.00015953,2]
[333518045,1722225952161,-163.450962,0.00012986,2]
[333518046,1722225952184,-228.022683,0.00014421,2]
[333518047,1722225952206,-174.7685221,0.00014988,2]
[333518048,1722225952229,-150.112233,0.00015,2]
[333518049,1722225952253,-489.13305151,0.0001561,2]
[333518050,1722225952274,-2657.36137281,0.00015635,2]
[333518051,1722226036091,-349.228022,0.00014247,2]
[333518052,1722226036112,-972.63251132,0.0001469,2]
[333518053,1722226041112,-23.53604056,0.0001469,2]
[333518054,1722226041138,-300.0,0.00015707,2]
[333518055,1722226041171,-441.92792345,0.00015708,2]
[333518056,1722226050197,-779.49709975,0.00015708,2]
[333518059,1722226150131,-174.0284,0.00014147,2]
[333518078,1722226233187,-300.0,0.00014146,2]
[333518080,1722226233199,-300.0,0.00014146,2]
[333518082,1722226233209,-17.48195431,0.00014147,2]
[333518084,1722226233219,-12112.37851366,0.00014147,2]
[333518086,1722226233230,-504.61836536,0.00015708,2]
[333518089,1722226233242,-771.04953,0.00015708,2]
[333518091,1722226233256,-258.70000001,0.00015708,2]
[333518093,1722226233269,-545.64000001,0.00015708,2]
[333518095,1722226233281,-17451.21077982,0.00015708,2]
[333518097,1722226233290,-500.0,0.00015708,2]
[333518099,1722226233300,-500.0,0.00015708,2]
[333518101,1722226233309,-173.37414565,0.00015708,2]
[333518628,1722226238551,-1705.05974779,0.00014147,2]
[333518645,1722226238700,-19457.46566058,0.00014147,2]
[333518647,1722226238711,-326.62585435,0.00015708,2]
[333518649,1722226238721,-500.0,0.00015708,2]
[333518651,1722226238731,-500.0,0.00015708,2]
[333518653,1722226238741,-940.94096572,0.00015708,2]
[333519132,1722226243576,-482.09463218,0.00015707,2]
[333519134,1722226243588,-500.0,0.00015707,2]
[333519136,1722226243599,-287.51385715,0.00015707,2]
[333519138,1722226243609,-3077.07860503,0.00015708,2]
[333519140,1722226243619,-500.0,0.00015708,2]
[333519142,1722226243628,-3081.45851338,0.00015708,2]
[333519145,1722226243640,-3917.71130712,0.00015708,2]
[333519147,1722226243650,-500.0,0.00015708,2]
[333519149,1722226243660,-500.0,0.00015708,2]
[333519151,1722226243669,-467.60464733,0.00015709,5]
[333519153,1722226243678,-6638.48168526,0.00015709,2]
[333519156,1722226243694,-35688.9919287,0.00015709,2]
[333519158,1722226243704,-9639.05525324,0.0001571,2]
[333519159,1722226243713,-2123.86369588,0.0001571,2]
[333519162,1722226243723,-3404.37264719,0.0001571,2]
[333519480,1722226246774,-261.81,0.00015708,2]
[333519481,1722226246787,-238.19,0.00015708,2]
[333519482,1722226246799,-481.6,0.0001571,2]
[333519483,1722226246832,-5753.08260605,0.0001571,2]
[333519484,1722226246843,-1762.71873065,0.0001571,2]
[333519486,1722226246855,-951.37397172,0.00015712,2]
[333519488,1722226246866,-4180.04028286,0.00015712,2]
[333519490,1722226246879,-2172.57710479,0.00015736,2]
[333520395,1722226281863,150.112233,0.00013,2]
[333520397,1722226323633,24.656289,0.00012986,2]
[333520398,1722226323655,147.660249,0.00012986,2]
[333520412,1722227148179,-172.316538,0.00012986,2]
[333520413,1722227148203,-260.7982939,0.00014335,2]
[333520414,1722227148228,-177.948601,0.00014481,2]
[333520415,1722227148254,-150.112233,0.000145,2]
[333520416,1722227148276,-10.06309368,0.00014669,2]
[333520441,1722227237093,-586.22954862,0.00014669,2]
[333520448,1722227345128,-331.76662,0.00014247,2]
[333520449,1722227345150,-124.17493016,0.00014669,2]
[333520450,1722227345172,-167.88550732,0.00014669,2]
[333520451,1722227345194,-551.2597,0.00014672,2]
[333520452,1722227345217,-337.46624253,0.00014672,2]
[333520453,1722227345242,-300.0,0.00014672,2]
[333520454,1722227345264,-35195.33452524,0.00014673,2]
[333520459,1722227426000,172.316538,0.00012986,2]
[333520476,1722227431784,-1392.53878483,0.00014673,2]
[333520479,1722227431796,-848.54825264,0.00014673,2]
[333520484,1722227431837,-777.46748131,0.00014673,2]
[333520563,1722227437771,-518.02950139,0.00014673,2]
[333520890,1722227442825,-306.13005826,0.00014673,2]
[333520892,1722227442838,-1168.0207781,0.00014673,2]
[333520895,1722227442849,-3775.69158031,0.00014673,2]
[333520918,1722227443061,-85.69319551,0.00014673,2]
[333523294,1722227594198,3000.0,0.00011,2]
[333523296,1722227675382,-9783.04126277,0.00011,2]
[333523304,1722228430562,-175.607011,0.00012986,2]
[333523305,1722228430584,-97.76635131,0.00013241,2]
[333523306,1722228434097,-152.23364869,0.00013241,2]
[333523307,1722228434119,-250.0,0.00013278,2]
[333523308,1722228434141,-164.619354,0.00013311,2]
[333523309,1722228434164,-250.0,0.00013314,2]
[333523310,1722228434187,-250.0,0.0001335,2]
[333523311,1722228434210,-250.0,0.00013387,2]
[333523312,1722228434232,-250.0,0.00013423,2]
[333523313,1722228434260,-65.41758744,0.00013459,2]
[333523314,1722228451002,-184.58241256,0.00013459,2]
[333523315,1722228451024,-250.0,0.00013496,2]
[333523316,1722228451046,-250.0,0.00013532,2]
[333523317,1722228451068,-250.0,0.00013568,2]
[333523318,1722228451089,-527.70978985,0.000136,2]
[333523319,1722228451112,-250.0,0.00013605,2]
[333523320,1722228451135,-250.0,0.00013641,2]
[333523321,1722228451158,-250.0,0.00013677,2]
[333523322,1722228451179,-248.30802451,0.00013699,2]
[333523323,1722228451200,-250.0,0.00013714,2]
[333523324,1722228451221,-250.0,0.0001375,2]
[333523325,1722228451242,-250.0,0.00013786,2]
[333523326,1722228451262,-250.0,0.00013823,2]
[333523327,1722228451283,-250.0,0.00013859,2]
[333523328,1722228451304,-250.0,0.00013895,2]
[333523329,1722228451325,-250.0,0.00013932,2]
[333523330,1722228451345,-300.0,0.00013932,2]
[333523331,1722228451366,-300.0,0.00013932,2]
[333523332,1722228451386,-1092.89658495,0.00014,2]
[333523333,1722228451406,-193.268952,0.00014247,2]
[333523334,1722228451426,-358.174409,0.00014247,2]
[333523335,1722228451447,-397.84540298,0.00014294,2]
[333523336,1722228451467,-308.66592258,0.00014344,2]
[333523337,1722228451486,-252.98985031,0.00014589,2]
[333523338,1722228451507,-6723.61708254,0.0001469,2]
[333523339,1722228451535,-195.621261,0.0001469,2]
[333523342,1722228546142,-161.9352,0.00012986,2]
[333523343,1722228562096,-7.593786,0.00012986,2]
[333523882,1722228642595,-584.59067252,0.00014689,2]
[333523884,1722228642604,-236.22636977,0.00014689,2]
[333523886,1722228642613,-817.41367392,0.0001469,2]
[333523888,1722228642622,-10659.09653469,0.0001469,2]
[333523890,1722228642634,-19340.90346531,0.0001469,2]
[333523892,1722228642643,-308.66592258,0.00014948,2]
[333523894,1722228642652,-150.112233,0.00015,2]
[333523896,1722228642663,-789.76901131,0.00015,2]
[333523898,1722228642673,-150.112233,0.00015,2]
[333523900,1722228642686,-150.112233,0.00015,2]
[333523902,1722228642695,-164.619354,0.00015125,2]
[333523904,1722228642704,-1425.81425,0.00015589,2]
[333523906,1722228642714,-1425.81425,0.00015594,2]
[333523908,1722228642723,-1425.81425,0.00015599,2]
[333523910,1722228642732,-233.80232367,0.00015603,5]
[333523912,1722228642742,-1425.81425,0.00015603,2]
[333523914,1722228642751,-1425.81425,0.00015608,2]
[333523916,1722228642760,-10030.52990071,0.00015679,2]
[333523925,1722228642833,-3254.89821459,0.00015679,2]
[333523938,1722228642948,-26350.27384524,0.00015679,2]
[333523943,1722228643005,-4064.08727856,0.00015679,2]
[333523944,1722228643015,-500.0,0.00015689,2]
[333523945,1722228643024,-595.89,0.00015689,2]
[333523946,1722228643034,-500.0,0.00015689,2]
[333523947,1722228643043,-543.36,0.00015689,2]
[333523948,1722228643052,-500.0,0.00015689,2]
[333523949,1722228643062,-500.0,0.00015689,2]
[333523950,1722228643070,-500.0,0.00015689,2]
[333523951,1722228643080,-500.0,0.00015689,2]
[333523952,1722228643089,-500.0,0.00015689,2]
[333523954,1722228643098,-500.0,0.00015689,2]
[333523955,1722228643107,-218.46272144,0.00015689,2]
[333523956,1722228643120,-281.53727856,0.00015689,2]
[333523957,1722228643130,-500.0,0.00015689,2]
[333523958,1722228643140,-333.88402492,0.00015689,2]
[333523960,1722228643154,-166.11597508,0.00015689,2]
[333523963,1722228643165,-500.0,0.00015689,2]
[333523965,1722228643174,-500.0,0.00015689,2]
[333523967,1722228643183,-500.0,0.00015689,2]
[333523969,1722228643192,-500.0,0.00015689,2]
[333523971,1722228643202,-500.0,0.00015689,2]
[333523973,1722228643211,-500.0,0.00015689,2]
[333523975,1722228643221,-207.99367531,0.00015689,2]
[333523977,1722228643231,-500.0,0.00015689,2]
[333523979,1722228643243,-500.0,0.00015689,2]
[333523981,1722228643252,-500.0,0.00015689,2]
[333523983,1722228643262,-500.0,0.00015689,2]
[333523985,1722228643271,-500.0,0.00015689,2]
[333523987,1722228643283,-500.0,0.00015689,2]
[333523989,1722228643295,-500.0,0.00015689,2]
[333523992,1722228643307,-500.0,0.00015689,2]
[333523994,1722228643319,-2896.84,0.00015689,2]
[333523996,1722228643330,-912.81,0.00015689,2]
[333523998,1722228643341,-500.0,0.00015689,2]
[333524001,1722228643353,-500.0,0.00015689,2]
[333524003,1722228643363,-500.0,0.00015689,2]
[333524005,1722228643372,-500.0,0.00015689,2]
[333524007,1722228643382,-500.0,0.00015689,2]
[333524009,1722228643392,-500.0,0.00015689,2]
[333524011,1722228643402,-500.0,0.00015689,2]
[333524013,1722228643411,-500.0,0.00015689,2]
[333524015,1722228643421,-500.0,0.00015689,2]
[333524017,1722228643430,-500.0,0.00015689,2]
[333524019,1722228643439,-237.08668869,0.00015689,2]
[333525552,1722228716228,1157.05047166,0.00012986,2]
[333525553,1722228822986,-2376.44633086,0.00012,2]
[333525554,1722228873989,-3438.55693464,0.00012,2]
[333525555,1722228881957,-154.62117811,0.00012,2]
[333525556,1722228907545,-154.86818526,0.00012,2]
[333525557,1722228986020,-154.82952629,0.00012,2]
[333525558,1722229024316,-3573.61781701,0.00012,2]
[333525572,1722229631770,-177.834436,0.00012986,2]
[333525573,1722229631792,-166.666666,0.00013335,2]
[333525574,1722229631813,-166.666666,0.00013699,2]
[333525575,1722229631835,-166.666666,0.00014062,2]
[333525576,1722229631857,-172.051416,0.00014079,2]
[333525577,1722229631879,-172.051416,0.00014184,2]
[333525578,1722229631901,-193.268952,0.00014247,2]
[333525579,1722229631923,-106.65431532,0.00014247,2]
[333525580,1722229637552,-251.07277368,0.00014247,2]
[333525581,1722229637576,-172.051416,0.00014289,2]
[333525582,1722229637599,-172.051416,0.00014393,2]
[333525583,1722229637621,-166.666666,0.00014426,2]
[333525584,1722229637645,-3.62169233,0.00014498,2]
[333525585,1722229639547,-168.42972367,0.00014498,2]
[333525586,1722229639569,-757.02209491,0.00014545,2]
[333525587,1722229651684,-166.666666,0.00013945,2]
[333525588,1722229651704,-239.14645697,0.00014545,2]
[333525589,1722229651725,-172.051416,0.00014603,2]
[333525590,1722229651747,-360.60341094,0.00014689,2]
[333525591,1722229748143,-775.7288,0.0001459,2]
[333525592,1722229767559,174.768522,0.00010959,2]
[333525593,1722229767584,164.26021029,0.00010959,2]
[333525594,1722229767618,493.02126771,0.00010959,2]
[333525620,1722229833393,-20.38433923,0.0001459,2]
[333525622,1722229833404,-291.74566077,0.0001469,2]
[333525713,1722229838488,-165.35845884,0.00014689,2]
[333525715,1722229838498,-181.97793668,0.00014689,2]
[333525717,1722229838508,-301.03244748,0.00014689,2]
[333525731,1722229838625,-29708.25433923,0.0001469,2]
[333525733,1722229838640,-172.051416,0.00014708,2]
[333525735,1722229838650,-172.051416,0.00014812,2]
[333525737,1722229838665,-300.0,0.00014999,2]
[333525739,1722229838675,-951.37397172,0.00015,2]
[333525741,1722229838685,-150.112233,0.00015,2]
[333525743,1722229838696,-2846.09052378,0.00015,2]
[333525745,1722229838705,-1109.75959995,0.00015,2]
[333525747,1722229838715,-308.66592259,0.00015448,2]
[333525749,1722229838724,-558.31331598,0.00015498,2]
[333525750,1722229838734,-558.31331598,0.00015523,2]
[333525751,1722229838745,-500.0,0.00015532,2]
[333525752,1722229838754,-500.0,0.00015532,2]
[333525753,1722229838765,-500.0,0.00015532,2]
[333525754,1722229838774,-500.0,0.00015532,2]
[333525755,1722229838784,-500.0,0.00015532,2]
[333525756,1722229838793,-500.0,0.00015532,2]
[333525757,1722229838802,-1204.26,0.00015532,2]
[333525758,1722229838812,-500.0,0.00015532,2]
[333525759,1722229838822,-500.0,0.00015532,2]
[333525760,1722229838830,-500.0,0.00015532,2]
[333525761,1722229838840,-500.0,0.00015532,2]
[333525762,1722229838850,-500.0,0.00015532,2]
[333525763,1722229838859,-500.0,0.00015532,2]
[333525764,1722229838869,-500.0,0.00015532,2]
[333525765,1722229838878,-500.0,0.00015532,2]
[333525766,1722229838887,-500.0,0.00015532,2]
[333525767,1722229838897,-500.0,0.00015532,2]
[333525768,1722229838906,-500.0,0.00015532,2]
[333525769,1722229838916,-296.36491369,0.00015532,2]
[333525770,1722229838925,-374.38580077,0.00015532,2]
[333525772,1722229838934,-500.0,0.00015532,2]
[333525774,1722229838944,-558.31331598,0.00015548,2]
[333525776,1722229838953,-558.31331598,0.00015573,2]
[333525778,1722229838963,-44345.9565848,0.00015588,2]
[333525780,1722229838972,-151.0,0.00015589,2]
[333525782,1722229838981,-151.0,0.00015589,2]
[333525784,1722229838990,-151.0,0.00015589,2]
[333525786,1722229839000,-151.0,0.00015589,2]
[333525788,1722229839009,-233.80232365,0.00015589,5]
[333525790,1722229839019,-44345.9565848,0.00015589,2]
[333525792,1722229839028,-10995.2922631,0.00015598,2]
[333525939,1722229840470,-9241.84295192,0.00015598,2]
[333525942,1722229840480,-558.31331598,0.00015598,2]
[333525944,1722229840490,-159.790222,0.00015598,2]
[333525946,1722229840500,-181.834686,0.00015598,2]
[333525948,1722229840511,-151.0,0.00015598,2]
[333525950,1722229840524,-151.0,0.00015598,2]
[333525952,1722229840534,-151.0,0.00015599,2]
[333525954,1722229840544,-151.0,0.00015599,2]
[333525956,1722229840555,-151.0,0.00015599,2]
[333525959,1722229840566,-151.0,0.00015599,2]
[333525961,1722229840576,-10219.72497973,0.00015599,2]
[333526545,1722229846375,-147.660249,0.00015599,2]
[333526547,1722229846388,-736.87080341,0.00015599,2]
[333527114,1722229891061,582.51,0.00010959,2]
[333527115,1722229901918,233.7759676,0.00010959,2]
[333527116,1722229901944,251.6540324,0.00010959,2]
[333527117,1722229912652,404.52,0.00010959,2]
[333527118,1722229923188,337.1,0.00010959,2]
[333527119,1722229933703,280.92,0.00010959,2]
[333527120,1722229944198,234.1,0.00010959,2]
[333527121,1722229954748,195.08,0.00010959,2]
[333527122,1722229965239,162.57,0.00010959,2]
[333527123,1722229975773,812.87,0.00010959,2]
[333527124,1722230001556,296.65687502,9.999e-05,2]
[333527125,1722230001583,5.88127951,9.999e-05,2]
[333527126,1722230830711,-174.768522,0.0001212,2]
[333527127,1722230841142,-411.46102662,0.0001212,2]
[333527128,1722230841164,-174.768522,0.00012986,2]
[333527129,1722230854096,-0.306965,0.00012986,2]
[333527130,1722230854118,-166.666666,0.00013417,2]
[333527131,1722230854141,-300.0,0.0001377,2]
[333527133,1722230854166,-300.0,0.0001377,2]
[333527134,1722230854204,-1666.866369,0.00013771,2]
[333527136,1722230922298,8.93837743,9.999e-05,2]
[333527141,1722230945169,-193.34693878,9.999e-05,2]
[333527142,1722230945190,-208.91875635,9.999e-05,2]
[333527143,1722230945210,-222.56260095,9.999e-05,2]
[333527144,1722230945230,-515.15246627,9.999e-05,2]
[333527145,1722230945251,-155.15596471,9.999e-05,2]
[333527146,1722230945272,-154.88623859,9.999e-05,2]
[333527147,1722230945291,-703.80956478,0.000125,2]
[333527148,1722230945312,-265.0,0.00013769,2]
[333527149,1722230945335,-246.0,0.0001377,2]
[333527150,1722230945356,-10156.8640666,0.00013771,2]
[333527151,1722230945378,-174.768522,0.00013794,2]
[333527152,1722230949277,155.00618278,9.999e-05,2]
[333527153,1722230968125,-339.840734,0.00014247,2]
[333527155,1722230971102,-490.0,0.00014589,2]
[333527156,1722231017876,881.9850901,0.00013776,2]